fUSD/lending_fUSD_20241106
["ID","MTS","AMOUNT","RATE_DAILY","PERIOD"]
[341500783,1730928631889,-583.66,0.00031237,2]
[341500784,1730928631898,-8871.92767866,0.00031325,15]
[341500785,1730928631907,-413.27,0.0003134,120]
[341500786,1730928631917,-188.92,0.0003134,2]
[341500787,1730928631927,-2695.0,0.000314,4]
[341500788,1730928631936,-1236.0,0.000314,4]
[341500789,1730928631945,-11549.0,0.000315,5]
[341500790,1730928631956,-498.0,0.00031508,2]
[341500791,1730928631965,-297.03,0.00031683,120]
[341500792,1730928631975,-583.66,0.00031723,2]
[341500793,1730928631984,-264.19,0.000318,2]
[341500794,1730928631994,-843.5656,0.00031858,2]
[341500795,1730928632004,-8579.4246,0.0003186,2]
[341500796,1730928632014,-940.27,0.00031972,2]
[341500797,1730928632023,-219.45369905,0.00031999,2]
[341500798,1730928632032,-7500.0,0.00031999,2]
[341500799,1730928632041,-899.99999901,0.00032,33]
[341500800,1730928632051,-454.83174684,0.00032,10]
[341500805,1730928632105,-545.16825316,0.00032,10]
[341500807,1730928632115,-2569.02174684,0.00032,2]
[341500811,1730928632145,-1658.26750842,0.00032,2]
[341500812,1730928632185,-100.37613269,0.00032,2]
[341500813,1730928632194,-31794.96132393,0.00032,5]
[341500814,1730928632206,-200.0,0.00032093,2]
[341500815,1730928632215,-164.77,0.00032093,2]
[341500816,1730928632225,-165.39,0.00032157,2]
[341500817,1730928632235,-272.19,0.00032204,120]
[341500818,1730928632244,-583.66,0.00032209,2]
[341500819,1730928632253,-200.0,0.00032225,120]
[341500820,1730928632262,-583.66,0.00032696,2]
[341500821,1730928632271,-1485.13062173,0.00032749,15]
[341500822,1730928632282,-7386.79705693,0.00032749,15]
[341500823,1730928632291,-297.0,0.0003279,29]
[341500824,1730928632301,-1731.03850249,0.000328,2]
[341500825,1730928632310,-253.85220753,0.000328,7]
[341500826,1730928632320,-345.72,0.00032823,120]
[341500827,1730928632330,-274.96558033,0.00032877,2]
[341500828,1730928632339,-168.0,0.00032877,2]
[341500829,1730928632348,-300.0,0.000329,2]
[341500830,1730928632357,-188.92,0.00032907,2]
[341500831,1730928632367,-1988.0,0.00032954,2]
[341500832,1730928632376,-558.0,0.00032954,2]
[341500833,1730928632385,-1788.34,0.00032954,2]
[341500834,1730928632394,-920.0,0.00032954,2]
[341500835,1730928632403,-2907.0,0.00032954,2]
[341500836,1730928632412,-813.0,0.00032954,2]
[341500837,1730928632421,-1257.0,0.00032954,2]
[341500838,1730928632431,-3377.0,0.00032954,2]
[341500839,1730928632439,-1161.621,0.00032954,2]
[341500840,1730928632448,-1252.0,0.00032954,2]
[341500841,1730928632459,-5920.0,0.00032954,2]
[341500842,1730928632468,-630.0,0.00032954,2]
[341500843,1730928632477,-291.693,0.00032954,2]
[341500844,1730928632487,-165.842,0.00032954,2]
[341500845,1730928632496,-452.0,0.00032954,2]
[341500846,1730928632506,-900.0,0.00033,34]
[341500847,1730928632516,-21217.43617722,0.00033,2]
[341500848,1730928632528,-175.0,0.00033,2]
[341500849,1730928632540,-788.81,0.00033014,2]
[341500850,1730928632550,-586.37,0.00033014,2]
[341500851,1730928632561,-330.75491635,0.00033082,2]
[341500852,1730928632571,-583.66,0.00033182,2]
[341500853,1730928632580,-500.0,0.00033465,7]
[341500854,1730928632589,-500.0,0.00033465,7]
[341500855,1730928632598,-500.0,0.00033465,7]
[341500856,1730928632607,-587.04324316,0.00033465,7]
[341500857,1730928632617,-4694.0,0.00033466,3]
[341500858,1730928632626,-500.0,0.00033466,2]
[341500859,1730928632635,-500.0,0.00033466,2]
[341500860,1730928632644,-500.0,0.00033466,2]
[341500861,1730928632653,-500.0,0.00033466,2]
[341500862,1730928632662,-500.0,0.00033466,2]
[341500863,1730928632672,-500.0,0.00033466,2]
[341500864,1730928632681,-500.0,0.00033466,2]
[341500865,1730928632690,-500.0,0.00033466,2]
[341500866,1730928632699,-500.0,0.00033466,2]
[341500867,1730928632710,-500.0,0.00033466,2]
[341500868,1730928632719,-500.0,0.00033466,2]
[341500869,1730928632728,-500.0,0.00033466,2]
[341500870,1730928632736,-500.0,0.00033466,2]
[341500871,1730928632745,-500.0,0.00033466,2]
[341500872,1730928632755,-500.0,0.00033466,2]
[341500873,1730928632764,-500.0,0.00033466,2]
[341500874,1730928632773,-500.0,0.00033466,2]
[341500875,1730928632782,-500.0,0.00033466,2]
[341500876,1730928632791,-500.0,0.00033466,2]
[341500877,1730928632800,-500.0,0.00033466,2]
[341500878,1730928632809,-500.0,0.00033466,2]
[341500879,1730928632818,-500.0,0.00033466,2]
[341500880,1730928632827,-500.0,0.00033466,2]
[341500881,1730928632836,-500.0,0.00033466,2]
[341500882,1730928632845,-500.0,0.00033466,2]
[341500883,1730928632854,-500.0,0.00033466,2]
[341500884,1730928632863,-500.0,0.00033466,2]
[341500885,1730928632871,-500.0,0.00033466,2]
[341500886,1730928632880,-500.0,0.00033466,2]
[341500887,1730928632889,-500.0,0.00033466,2]
[341500888,1730928632899,-500.0,0.00033466,2]
[341500889,1730928632908,-500.0,0.00033466,2]
[341500890,1730928632917,-500.0,0.00033466,2]
[341500891,1730928632926,-500.0,0.00033466,2]
[341500892,1730928632935,-500.0,0.00033466,2]
[341500893,1730928632944,-500.0,0.00033466,2]
[341500894,1730928632953,-500.0,0.00033466,2]
[341500895,1730928632963,-500.0,0.00033466,2]
[341500896,1730928632973,-500.0,0.00033466,2]
[341500897,1730928632982,-500.0,0.00033466,2]
[341500898,1730928632991,-500.0,0.00033466,2]
[341500899,1730928633000,-500.0,0.00033466,2]
[341500900,1730928633009,-500.0,0.00033466,2]
[341500901,1730928633018,-500.0,0.00033466,2]
[341500902,1730928633027,-500.0,0.00033466,2]
[341500903,1730928633037,-500.0,0.00033466,2]
[341500904,1730928633046,-500.0,0.00033466,2]
[341500905,1730928633056,-500.0,0.00033466,2]
[341500906,1730928633351,-500.0,0.00033466,2]
[341500907,1730928633392,-500.0,0.00033466,2]
[341500908,1730928633402,-500.0,0.00033466,2]
[341500909,1730928633412,-500.0,0.00033466,2]
[341500910,1730928633421,-500.0,0.00033466,2]
[341500911,1730928633430,-500.0,0.00033466,2]
[341500912,1730928633440,-500.0,0.00033466,2]
[341500913,1730928633449,-500.0,0.00033466,2]
[341500914,1730928633459,-583.66,0.00033668,2]
[341500915,1730928633469,-1000.0,0.00033699,7]
[341500916,1730928633478,-1000.0,0.00033699,7]
[341500917,1730928633487,-1000.0,0.00033699,7]
[341500918,1730928633497,-1000.0,0.00033699,7]
[341500919,1730928633506,-1000.0,0.00033699,7]
[341500920,1730928633516,-1000.0,0.00033699,7]
[341500921,1730928633525,-1000.0,0.00033699,7]
[341500922,1730928633536,-1000.0,0.00033699,7]
[341500923,1730928633545,-1000.0,0.00033699,7]
[341500924,1730928633554,-1000.0,0.00033699,7]
[341500925,1730928633564,-1000.0,0.00033699,7]
[341500926,1730928633573,-1000.0,0.00033699,7]
[341500927,1730928633582,-1000.0,0.00033699,7]
[341500928,1730928633592,-1000.0,0.00033699,7]
[341500929,1730928633601,-1000.0,0.00033699,7]
[341500930,1730928633610,-1000.0,0.00033699,7]
[341500931,1730928633619,-1000.0,0.00033699,7]
[341500932,1730928633628,-1000.0,0.00033699,7]
[341500933,1730928633638,-1000.0,0.00033699,7]
[341500934,1730928633647,-1000.0,0.00033699,7]
[341500935,1730928633656,-1000.0,0.00033699,7]
[341500936,1730928633666,-1000.0,0.00033699,7]
[341500937,1730928633675,-1000.0,0.00033699,7]
[341500938,1730928633686,-1000.0,0.00033699,7]
[341500939,1730928633696,-1000.0,0.00033699,7]
[341500940,1730928633707,-1000.0,0.00033699,7]
[341500941,1730928633717,-1000.0,0.00033699,7]
[341500942,1730928633726,-1000.0,0.00033699,7]
[341500943,1730928633736,-1000.0,0.00033699,7]
[341500944,1730928633745,-1000.0,0.00033699,7]
[341500945,1730928633754,-167.0,0.00033699,7]
[341500946,1730928633764,-864.62,0.00033699,2]
[341500947,1730928633773,-300.0,0.00033699,2]
[341500948,1730928633783,-150.0,0.00033699,2]
[341500949,1730928633791,-346.5,0.00033699,2]
[341500950,1730928633801,-500.83095971,0.00033773,5]
[341500951,1730928633810,-523.78871401,0.00033773,5]
[341500952,1730928633819,-500.0,0.00033773,5]
[341500953,1730928633829,-104642.704204,0.000338,3]
[341500954,1730928633838,-29999.99,0.00033844,30]
[341500955,1730928633847,-400.0,0.000339,12]
[341500956,1730928633856,-31142.2409901,0.000339,3]
[341500957,1730928633866,-427.45,0.00033973,2]
[341500958,1730928633875,-761.58,0.00033973,2]
[341500959,1730928633884,-427.45,0.00033973,2]
[341500960,1730928633894,-427.45,0.00033973,2]
[341500961,1730928633903,-761.58,0.00033973,2]
[341500962,1730928633913,-761.58,0.00033973,2]
[341500963,1730928633922,-761.58,0.00033973,2]
[341500964,1730928633931,-1522.58,0.00033973,2]
[341500965,1730928633941,-761.58,0.00033973,2]
[341500966,1730928633950,-1514.97,0.00033973,2]
[341500967,1730928633961,-405.60543822,0.00034,5]
[341500968,1730928633970,-382.573608,0.00034,30]
[341500969,1730928633979,-442.60191,0.0003406,2]
[341500970,1730928633989,-11232.50218397,0.0003406,2]
[341500971,1730928633998,-1000.0,0.000341,7]
[341500972,1730928634008,-1111.99138824,0.00034169,2]
[341500973,1730928634018,-8871.92767866,0.00034174,15]
[341500974,1730928634028,-157.110706,0.00034198,4]
[341500975,1730928634038,-940.27,0.00034236,2]
[341500976,1730928634047,-171.76811577,0.000343,6]
[341500977,1730928634058,-180.0,0.00034327,2]
[341500978,1730928634067,-31142.2409901,0.0003437,3]
[341500979,1730928634077,-298.86174837,0.00034373,5]
[341500980,1730928634087,-500.0,0.00034373,5]
[341500981,1730928634097,-34880.9014013,0.0003438,3]
[341500982,1730928634107,-31142.2409901,0.0003438,3]
[341500983,1730928634116,-7500.0,0.00034389,2]
[341500984,1730928634126,-34880.9014013,0.0003439,3]
[341500985,1730928634141,-62284.4819803,0.0003439,3]
[341500986,1730928634151,-34880.9014013,0.00034392,3]
[341500987,1730928634161,-1846.2938964,0.00034395,2]
[341500988,1730928634171,-359.22395064,0.00034399,2]
[341500989,1730928634182,-92885.75744998,0.000344,2]
[341500990,1730928634191,-800.0,0.000344,120]
[341500991,1730928634201,-151.0,0.000344,7]
[341500992,1730928634213,-241.567037,0.000344,7]
[341500993,1730928634222,-151.0,0.000344,7]
[341500994,1730928634232,-217.765445,0.000344,7]
[341500995,1730928634241,-151.0,0.000344,7]
[341500996,1730928634251,-151.0,0.000344,7]
[341500997,1730928634260,-151.0,0.000344,7]
[341500998,1730928634270,-398.0,0.000344,19]
[341500999,1730928634279,-200.0,0.000344,2]
[341501000,1730928634288,-196.0,0.000344,19]
[341501001,1730928634298,-1160.13733,0.000344,19]
[341501002,1730928634307,-802.0,0.000344,2]
[341501003,1730928634316,-150.0,0.000344,2]
[341501004,1730928634325,-150.0,0.000344,2]
[341501005,1730928634334,-259.92490277,0.000344,2]
[341501006,1730928634344,-229.9205966,0.000344,2]
[341501007,1730928634353,-500.0,0.000344,2]
[341501008,1730928634362,-161.1136749,0.000344,2]
[341501009,1730928634372,-150.0,0.000344,2]
[341501010,1730928634381,-16218.965606,0.00034402,2]
[341501011,1730928634390,-687.6515405,0.00034402,2]
[341501012,1730928634400,-7808.855313,0.00034408,2]
[341501013,1730928634409,-210.4710871,0.00034408,2]
[341501014,1730928634419,-152.58092324,0.00034418,2]
[341501015,1730928634428,-500.0,0.00034441,60]
[341501016,1730928634437,-1900.0,0.00034441,60]
[341501017,1730928634447,-1400.0,0.00034441,60]
[341501018,1730928634456,-188.92,0.00034474,2]
[341501019,1730928634466,-157.110706,0.00034498,4]
[341501020,1730928634475,-163.21,0.00034541,2]
[341501021,1730928634484,-150.0,0.00034548,10]
[341501022,1730928634494,-15570.32353301,0.0003462,3]
[341501023,1730928635053,-15571.91745709,0.0003462,3]
[341501024,1730928635064,-34880.9014013,0.00034629,3]
[341501025,1730928635073,-6387.00299066,0.00034649,2]
[341501026,1730928635083,-802.0,0.00034674,2]
[341501027,1730928635092,-500.0,0.00034674,2]
[341501028,1730928635102,-150.0,0.00034674,2]
[341501029,1730928635112,-500.0,0.00034689,120]
[341501030,1730928635121,-2000.0,0.00034689,120]
[341501031,1730928635131,-500.0,0.00034689,120]
[341501032,1730928635144,-500.0,0.00034689,120]
[341501033,1730928635154,-200.0,0.00034689,120]
[341501034,1730928635163,-200.0,0.00034744,2]
[341501035,1730928635173,-900.0,0.000348,12]
[341501036,1730928635183,-999.0,0.00034849,120]
[341501037,1730928635192,-1300.0,0.000349,12]
[341501038,1730928635201,-200.0,0.000349,120]
[341501039,1730928635216,-802.0,0.00034948,2]
[341501040,1730928635226,-500.0,0.00034948,2]
[341501041,1730928635235,-200.0,0.00034948,2]
[341501042,1730928635245,-26993.15187177,0.00034959,3]
[341501043,1730928635270,-4149.08911833,0.00034959,3]
[341501044,1730928635279,-4157.85871291,0.00034969,3]
[341501045,1730928635402,-500.0,0.00033466,2]
[341501046,1730928635412,-21134.76340427,0.00034969,3]
[341501047,1730928635508,-7587.984984,0.00034969,3]
[341501048,1730928635520,-2000.29430012,0.00034969,3]
[341501049,1730928635529,-34880.9014013,0.0003497,3]
[341501050,1730928635539,-3678.64329859,0.0003497,3]
[341501051,1730928635550,-1271.70000001,0.0003497,3]
[341501057,1730928637551,-1157.0,0.00032954,2]
[341501059,1730928637561,-500.0,0.00033466,2]
[341501061,1730928637570,-500.0,0.00033466,2]
[341501063,1730928637579,-500.0,0.00033466,2]
[341501065,1730928637588,-500.0,0.00033466,2]
[341501066,1730928637598,-500.0,0.00033466,2]
[341501068,1730928637607,-500.0,0.00033466,2]
[341501070,1730928637616,-500.0,0.00033466,2]
[341501071,1730928637625,-500.0,0.00033466,2]
[341501072,1730928637634,-500.0,0.00033466,2]
[341501073,1730928637643,-500.0,0.00033466,2]
[341501074,1730928637652,-500.0,0.00033466,2]
[341501075,1730928637661,-500.0,0.00033466,2]
[341501076,1730928637670,-500.0,0.00033466,2]
[341501077,1730928637679,-500.0,0.00033466,2]
[341501078,1730928637688,-500.0,0.00033466,2]
[341501079,1730928637697,-500.0,0.00033466,2]
[341501080,1730928637706,-500.0,0.000344,14]
[341501081,1730928637715,-4427.33677535,0.0003497,3]
[341501082,1730928637814,-3764.16183592,0.0003497,3]
[341501083,1730928637827,-4549.38,0.0003497,3]
[341501084,1730928637840,-645.01016873,0.0003497,3]
[341501085,1730928637868,-12806.0089115,0.0003497,3]
[341501086,1730928637877,-508.03761665,0.00034973,2]
[341501087,1730928637886,-500.0,0.00034973,5]
[341501088,1730928637896,-500.0,0.00034973,5]
[341501089,1730928637906,-500.0,0.00034973,5]
[341501090,1730928637915,-241.39975364,0.00034973,5]
[341501091,1730928637925,-34880.9014013,0.0003498,3]
[341501092,1730928637935,-62284.4819803,0.0003498,3]
[341501093,1730928637946,-500.0,0.00034989,60]
[341501094,1730928637957,-1900.0,0.00034989,60]
[341501095,1730928637968,-1400.0,0.00034989,60]
[341501096,1730928637978,-80720.74408612,0.0003499,3]
[341501097,1730928638001,-500.0,0.00033466,2]
[341501099,1730928638011,-1083.8655249,0.0003499,3]
[341501100,1730928638023,-1000.0042824,0.0003499,3]
[341501105,1730928638068,-323.35454331,0.0003499,3]
[341501106,1730928638203,-21514.73576727,0.0003499,3]
[341501107,1730928638216,-16343.86579331,0.0003499,3]
[341501156,1730928640053,-7591.73683252,0.00032954,2]
[341501158,1730928640065,-6018.26316748,0.00032954,2]
[341501159,1730928640074,-500.0,0.00033466,2]
[341501160,1730928640084,-500.0,0.00033466,2]
[341501161,1730928640094,-430.47066296,0.00033466,2]
[341501162,1730928640105,-69.52933704,0.00033466,2]
[341501163,1730928640114,-500.0,0.00033466,2]
[341501164,1730928640124,-500.0,0.00033466,2]
[341501165,1730928640133,-9805.0769374,0.00034395,2]
[341501166,1730928640147,-64084.9230626,0.0003499,3]
[341501167,1730928640732,1500.0,0.00019284,2]
[341501168,1730928641002,1500.0,0.00019326,2]
[341501169,1730928641235,1500.0,0.00019257,2]
[341501170,1730928641273,1500.0,0.00019235,2]
[341501185,1730928643076,-341.46735558,0.00032954,2]
[341501186,1730928643088,-216.53264442,0.00032954,2]
[341501187,1730928643098,-500.0,0.00033466,2]
[341501188,1730928643107,-500.0,0.00033466,2]
[341501189,1730928643117,-500.0,0.00033466,2]
[341501190,1730928643127,-500.0,0.00033466,2]
[341501191,1730928643136,-500.0,0.00033466,2]
[341501192,1730928643149,-500.0,0.00033466,2]
[341501194,1730928643158,-500.0,0.00033466,2]
[341501197,1730928643168,-500.0,0.00033466,2]
[341501199,1730928643178,-500.0,0.00033466,2]
[341501201,1730928643189,-500.0,0.00033466,2]
[341501203,1730928643198,-150.0,0.0003472,2]
[341501205,1730928643208,-150.0,0.00034721,2]
[341501207,1730928643221,-150.0,0.00034729,2]
[341501209,1730928643231,-150.0,0.00034735,2]
[341501211,1730928643240,-186.49256059,0.00034744,2]
[341501213,1730928643250,-150.0,0.00034753,2]
[341501216,1730928643259,-150.0,0.00034755,2]
[341501218,1730928643268,-150.0,0.00034757,2]
[341501220,1730928643279,-150.0,0.00034758,2]
[341501222,1730928643288,-150.0,0.00034761,2]
[341501224,1730928643297,-150.0,0.00034762,2]
[341501226,1730928643306,-150.0,0.00034763,2]
[341501228,1730928643316,-150.0,0.00034767,2]
[341501230,1730928643325,-150.0,0.0003477,2]
[341501232,1730928643334,-150.0,0.00034774,2]
[341501234,1730928643344,-150.0,0.00034779,2]
[341501236,1730928643353,-150.0,0.00034787,2]
[341501238,1730928643362,-150.0,0.00034798,2]
[341501240,1730928643371,-150.0,0.00034805,2]
[341501242,1730928643381,-150.0,0.00034822,2]
[341501244,1730928643390,-150.0,0.00034823,2]
[341501246,1730928643399,-150.0,0.00034825,2]
[341501248,1730928643409,-150.0,0.00034839,2]
[341501249,1730928643419,-150.0,0.00034844,2]
[341501250,1730928643429,-150.0,0.00034846,2]
[341501251,1730928643439,-150.0,0.00034851,2]
[341501252,1730928643449,-150.0,0.00034854,2]
[341501253,1730928643459,-150.0,0.00034861,2]
[341501254,1730928643470,-150.0,0.00034871,2]
[341501255,1730928643479,-150.0,0.00034881,2]
[341501256,1730928643489,-150.0,0.00034887,2]
[341501257,1730928643498,-150.0,0.00034891,2]
[341501258,1730928643507,-150.0,0.00034891,2]
[341501259,1730928643517,-150.0,0.00034892,2]
[341501260,1730928643527,-150.0,0.00034896,2]
[341501261,1730928643536,-150.0,0.00034898,2]
[341501262,1730928643545,-150.0,0.00034903,2]
[341501263,1730928643554,-150.0,0.00034908,2]
[341501264,1730928643563,-150.0,0.00034908,2]
[341501265,1730928643572,-150.0,0.00034916,2]
[341501266,1730928643582,-150.0,0.00034919,2]
[341501267,1730928643591,-150.0,0.00034923,2]
[341501268,1730928643601,-150.0,0.00034937,2]
[341501269,1730928643610,-150.0,0.00034941,2]
[341501270,1730928643620,-150.0,0.00034944,2]
[341501271,1730928643630,-185.48170938,0.00034945,2]
[341501272,1730928643639,-150.0,0.00034947,2]
[341501273,1730928643649,-385.56704035,0.00034947,2]
[341501274,1730928643659,-150.0,0.00034957,2]
[341501275,1730928643668,-150.0,0.00034961,2]
[341501276,1730928643678,-150.0,0.00034964,2]
[341501277,1730928643687,-150.0,0.0003497,2]
[341501278,1730928643697,-150.0,0.0003498,2]
[341501279,1730928643706,-150.0,0.00034986,2]
[341501280,1730928643718,-5298.26726654,0.0003499,3]
[341501281,1730928643941,-7699.66684805,0.0003499,3]
[341501282,1730928643951,-16081.89230979,0.00035,2]
[341501283,1730928644105,-500.0,0.00033466,2]
[341501284,1730928644115,-706.52568014,0.00035,2]
[341501289,1730928646597,-200.0,0.00028928,7]
[341501290,1730928646608,-500.0,0.00033466,2]
[341501291,1730928646617,-500.0,0.00033466,2]
[341501292,1730928646627,-500.0,0.00033466,2]
[341501293,1730928646636,-500.0,0.00033466,2]
[341501294,1730928646646,-500.0,0.00033466,2]
[341501295,1730928646655,-500.0,0.00033466,2]
[341501296,1730928646664,-500.0,0.00033466,2]
[341501297,1730928646673,-11533.83347897,0.00035,2]
[341501298,1730928646688,-759.548106,0.00035,2]
[341501300,1730928730388,250.0,0.00021,2]
[341501301,1730928731850,300.0,0.00023,2]
[341501302,1730928732543,350.0,0.00025,2]
[341501303,1730928733622,400.0,0.00027,2]
[341501305,1730928988730,157.5,0.00015342,2]
[341501307,1730929467950,250.0,0.00021,2]
[341501309,1730929587348,161.36,0.00015342,2]
[341501310,1730929597724,-300.0,0.00023,2]
[341501311,1730929597744,-200.0,0.00023,2]
[341501312,1730929597763,-788.96994,0.00024832,2]
[341501313,1730929597783,-296.04227544,0.00024932,2]
[341501314,1730929629106,-203.95772456,0.00024932,2]
[341501315,1730929629129,-350.0,0.00025,2]
[341501316,1730929629150,-100.8166036,0.00027,2]
[341501317,1730929638110,-299.1833964,0.00027,2]
[341501318,1730929638131,-289.43,0.00028493,2]
[341501319,1730929638152,-811.88,0.00028943,2]
[341501320,1730929638503,-450.0,0.00029,2]
[341501321,1730929638526,-424.08495,0.0003,120]
[341501322,1730929638547,-234.67,0.00030137,2]
[341501323,1730929638569,-1194.0,0.000307,3]
[341501324,1730929638591,-161.55,0.00030748,2]
[341501325,1730929638611,-250.0,0.00030938,2]
[341501326,1730929638632,-12619.76560553,0.00030939,2]
[341501327,1730929643095,-1941.10605316,0.00030939,2]
[341501338,1730929772688,150.0,0.00024,60]
[341501355,1730929831902,-161.55,0.00030472,2]
[341501356,1730929831912,-9339.12834131,0.00030939,2]
[341501357,1730929831923,-200.0,0.00030945,2]
[341501358,1730929831932,-537.41,0.00030948,2]
[341501359,1730929831942,-640.0,0.00030975,2]
[341501360,1730929831952,-500.0,0.00031,30]
[341501361,1730929831961,-500.0,0.00031,30]
[341501362,1730929831973,-500.0,0.00031,30]
[341501363,1730929831984,-500.0,0.00031,30]
[341501364,1730929831995,-500.0,0.00031,2]
[341501365,1730929832005,-500.0,0.00031,30]
[341501366,1730929832014,-500.0,0.00031,30]
[341501367,1730929832023,-500.0,0.00031,30]
[341501368,1730929832032,-667.51,0.00031007,2]
[341501369,1730929832041,-250.0,0.00031017,2]
[341501370,1730929832050,-1852.42,0.00031037,2]
[341501371,1730929832059,-220.72,0.0003104,2]
[341501372,1730929832068,-250.0,0.0003104,2]
[341501373,1730929832077,-262.87,0.00031056,2]
[341501374,1730929832086,-897.0,0.00031081,2]
[341501375,1730929832096,-222.94,0.00031082,2]
[341501376,1730929832106,-11335.0,0.000311,5]
[341501377,1730929832116,-340.19,0.00031107,2]
[341501378,1730929832128,-360.0,0.00031108,2]
[341501379,1730929832137,-548.37,0.00031137,120]
[341501380,1730929832146,-200.0,0.00031145,2]
[341501381,1730929832155,-6729.16,0.00031153,2]
[341501382,1730929832164,-161.55,0.00031157,2]
[341501383,1730929832173,-346.52,0.00031173,2]
[341501384,1730929832182,-200.0,0.00031204,7]
[341501385,1730929832192,-186.377,0.00031204,2]
[341501386,1730929832201,-811.88,0.00031206,2]
[341501387,1730929832210,-247.52,0.00031237,120]
[341501388,1730929832220,-575.93,0.00031311,2]
[341501389,1730929832230,-311.14,0.00031356,30]
[341501390,1730929832240,-251.63,0.00031385,120]
[341501391,1730929832250,-150.0,0.00031408,2]
[341501392,1730929832259,-595.8,0.00031408,2]
[341501393,1730929832269,-595.8,0.00031424,2]
[341501394,1730929832278,-595.8,0.00031441,2]
[341501395,1730929832288,-595.8,0.00031457,2]
[341501396,1730929832298,-595.8,0.00031474,2]
[341501397,1730929832307,-595.8,0.0003149,2]
[341501398,1730929832316,-595.8,0.00031507,2]
[341501399,1730929832327,-595.8,0.00031524,2]
[341501400,1730929832336,-188.92,0.00031528,2]
[341501401,1730929832346,-595.8,0.0003154,2]
[341501402,1730929832355,-595.8,0.00031557,2]
[341501403,1730929832368,-595.8,0.00031573,2]
[341501404,1730929832377,-595.8,0.0003159,2]
[341501405,1730929832386,-595.8,0.00031606,2]
[341501406,1730929832396,-595.8,0.00031623,2]
[341501407,1730929832406,-595.8,0.00031639,2]
[341501408,1730929832416,-595.8,0.00031656,2]
[341501409,1730929832425,-595.8,0.00031672,2]
[341501410,1730929832436,-595.8,0.00031689,2]
[341501411,1730929832445,-595.8,0.00031705,2]
[341501412,1730929832456,-595.8,0.00031722,2]
[341501413,1730929832465,-161.55,0.00031842,2]
[341501414,1730929832475,-500.0,0.00032059,120]
[341501415,1730929832484,-200.0,0.00032196,120]
[341501416,1730929832494,-228.7,0.00032467,2]
[341501433,1730929832809,-161.55,0.00032528,2]
[341501434,1730929832831,-1252.0,0.00032865,2]
[341501435,1730929832841,-452.0,0.00032865,2]
[341501436,1730929832851,-558.0,0.00032865,2]
[341501437,1730929832860,-1901.897,0.00032865,2]
[341501438,1730929832872,-860.435,0.00032865,2]
[341501439,1730929832881,-920.0,0.00032865,2]
[341501440,1730929832890,-647.13,0.00032865,2]
[341501441,1730929832900,-813.0,0.00032865,2]
[341501442,1730929832910,-3377.0,0.00032865,2]
[341501443,1730929832919,-5920.0,0.00032865,2]
[341501444,1730929832929,-155.735,0.00032865,2]
[341501445,1730929832938,-150.0,0.00032865,2]
[341501446,1730929832947,-1157.0,0.00032865,2]
[341501447,1730929832956,-13610.0,0.00032865,2]
[341501448,1730929832966,-233.20002075,0.00032877,2]